lending/lending_fUSD_20250719
["ID","MTS","AMOUNT","RATE_DAILY","PERIOD"]
[373287523,1752928262443,-593.57,0.00019397,2]
[373287524,1752928262453,-480.0,0.00019397,2]
[373287525,1752928262463,-480.0,0.00019397,2]
[373287526,1752928262472,-480.0,0.00019397,2]
[373287527,1752928262483,-480.0,0.00019397,2]
[373287528,1752928262493,-151.60168483,0.00019397,2]
[373287529,1752928262504,-328.39831517,0.00019397,2]
[373287530,1752928262514,-1349.46,0.00019397,2]
[373287531,1752928262524,-480.0,0.00019397,2]
[373287532,1752928262533,-480.0,0.00019397,2]
[373287533,1752928262543,-480.0,0.00019397,2]
[373287534,1752928262552,-480.0,0.00019397,2]
[373287535,1752928262561,-480.0,0.00019397,2]
[373287536,1752928262571,-480.0,0.00019397,2]
[373287537,1752928262580,-480.0,0.00019397,2]
[373287538,1752928262590,-480.0,0.00019397,2]
[373287539,1752928262599,-470.3092844,0.00019397,2]
[373287540,1752928262616,-9.6907156,0.00019397,2]
[373287541,1752928262626,-448.4290133,0.00019397,2]
[373287542,1752928262747,-31.5709867,0.00019397,2]
[373287543,1752928262757,-480.0,0.00019397,2]
[373287544,1752928262767,-45.28181514,0.00019397,2]
[373287545,1752928262779,-434.71818486,0.00019397,2]
[373287546,1752928262788,-480.0,0.00019397,2]
[373287547,1752928262798,-480.0,0.00019397,2]
[373287548,1752928262808,-480.0,0.00019397,2]
[373287549,1752928262818,-480.0,0.00019397,2]
[373287550,1752928262827,-480.0,0.00019397,2]
[373287551,1752928262837,-480.0,0.00019397,2]
[373287552,1752928262847,-480.0,0.00019397,2]
[373287553,1752928262857,-480.0,0.00019397,2]
[373287554,1752928262866,-480.0,0.00019397,2]
[373287555,1752928262876,-480.0,0.00019397,2]
[373287556,1752928262886,-572.59,0.00019397,2]
[373287557,1752928262895,-492.06,0.00019397,2]
[373287558,1752928262904,-480.0,0.00019397,2]
[373287559,1752928262914,-480.0,0.00019397,2]
[373287560,1752928262924,-501.9,0.00019397,2]
[373287561,1752928262934,-719.93,0.00019397,2]
[373287562,1752928262944,-480.0,0.00019397,2]
[373287563,1752928262954,-4026.25137963,0.00019403,2]
[373287564,1752928262995,-480.0,0.00019178,2]
[373287565,1752928263006,-1360.54482747,0.00019403,2]
[373287566,1752928263017,-19189.88387144,0.00019403,2]
[373287567,1752928263027,-302.15743375,0.00019416,2]
[373287568,1752928263038,-200.0,0.00019419,2]
[373287569,1752928263050,-200.0,0.00019419,2]
[373287570,1752928263060,-500.0,0.00019421,2]
[373287571,1752928263070,-38302.60094061,0.00019422,2]
[373287572,1752928263082,-24168.47866787,0.00019422,2]
[373287573,1752928263094,-24576.68007854,0.0001943,2]
[373287574,1752928263105,-302.15743375,0.0001945,2]
[373287575,1752928263115,-200.0,0.0001947,2]
[373287576,1752928263126,-302.15743375,0.0001947,2]
[373287577,1752928263138,-200.0,0.00019482,2]
[373287578,1752928263152,-9260.5263861,0.00019498,2]
[373287579,1752928263204,-17.2748998,0.00019498,2]
[373287580,1752928263252,-811.2672045,0.000169,2]
[373287581,1752928263262,-480.0,0.00019178,2]
[373287582,1752928263272,-480.0,0.00019287,2]
[373287583,1752928263283,-3932.5787141,0.00019498,2]
[373287584,1752928263293,-151.0,0.00019498,2]
[373287585,1752928263303,-151.0,0.00019498,2]
[373287586,1752928263312,-151.0,0.00019498,2]
[373287587,1752928263322,-282.27,0.00019506,2]
[373287588,1752928263332,-400.0,0.00019506,2]
[373287589,1752928263341,-269.07,0.00019506,2]
[373287590,1752928263351,-480.0,0.00019506,2]
[373287591,1752928263360,-480.0,0.00019506,2]
[373287592,1752928263371,-480.0,0.00019506,2]
[373287593,1752928263381,-495.87,0.00019506,2]
[373287594,1752928263390,-349.29,0.00019506,2]
[373287595,1752928263401,-329.97,0.00019506,2]
[373287596,1752928263411,-243.21,0.00019506,2]
[373287597,1752928263421,-591.76,0.00019506,2]
[373287598,1752928263431,-572.87,0.00019506,2]
[373287599,1752928263440,-434.62,0.00019506,2]
[373287600,1752928263451,-407.27,0.00019506,2]
[373287601,1752928263461,-191.07,0.00019506,2]
[373287602,1752928263471,-588.03,0.00019506,2]
[373287603,1752928263482,-480.0,0.00019506,2]
[373287604,1752928263492,-480.0,0.00019506,2]
[373287605,1752928263502,-480.0,0.00019506,2]
[373287606,1752928263512,-480.0,0.00019506,2]
[373287607,1752928263522,-480.0,0.00019506,2]
[373287608,1752928263533,-480.0,0.00019506,2]
[373287609,1752928263542,-480.0,0.00019506,2]
[373287610,1752928263552,-177.28,0.00019506,2]
[373287611,1752928263562,-480.0,0.00019506,2]
[373287612,1752928263571,-480.0,0.00019506,2]
[373287613,1752928263581,-440.0,0.00019506,2]
[373287614,1752928263591,-620.54649499,0.00019506,2]
[373287615,1752928263601,-480.0,0.00019506,2]
[373287616,1752928263611,-480.0,0.00019506,2]
[373287617,1752928263620,-489.47021698,0.00019506,2]
[373287618,1752928263630,-434.62,0.00019506,2]
[373287619,1752928263640,-480.0,0.00019506,2]
[373287620,1752928263650,-480.0,0.00019506,2]
[373287621,1752928263660,-480.0,0.00019506,2]
[373287622,1752928263669,-480.0,0.00019506,2]
[373287623,1752928263679,-483.26,0.00019506,2]
[373287624,1752928263689,-480.0,0.00019506,2]
[373287625,1752928263699,-343.74,0.00019506,2]
[373287626,1752928263709,-840.08,0.00019506,2]
[373287627,1752928263719,-175.26,0.00019506,2]
[373287628,1752928263731,-480.0,0.00019506,2]
[373287629,1752928263741,-460.0,0.00019506,2]
[373287630,1752928263751,-460.0,0.00019506,2]
[373287631,1752928263761,-489.54,0.00019506,2]
[373287632,1752928263771,-480.0,0.00019506,2]
[373287633,1752928263781,-480.0,0.00019506,2]
[373287634,1752928263792,-493.36,0.00019506,2]
[373287635,1752928263801,-480.0,0.00019506,2]
[373287636,1752928263811,-480.0,0.00019506,2]
[373287637,1752928263821,-480.0,0.00019506,2]
[373287638,1752928263831,-313.89,0.00019506,2]
[373287639,1752928263841,-480.0,0.00019506,2]
[373287640,1752928263852,-480.0,0.00019506,2]
[373287641,1752928263862,-460.0,0.00019506,2]
[373287642,1752928263873,-480.0,0.00019506,2]
[373287643,1752928263883,-480.0,0.00019506,2]
[373287644,1752928263893,-480.0,0.00019506,2]
[373287645,1752928263903,-480.0,0.00019506,2]
[373287646,1752928263916,-480.0,0.00019506,2]
[373287647,1752928263926,-480.0,0.00019506,2]
[373287648,1752928263936,-480.0,0.00019506,2]
[373287649,1752928263946,-823.7,0.00019506,2]
[373287650,1752928263955,-480.0,0.00019506,2]
[373287651,1752928263966,-480.0,0.00019506,2]
[373287652,1752928263976,-480.0,0.00019506,2]
[373287653,1752928263986,-480.0,0.00019506,2]
[373287654,1752928263996,-480.0,0.00019506,2]
[373287655,1752928264006,-480.0,0.00019506,2]
[373287656,1752928264015,-1696.98,0.00019506,2]
[373287657,1752928264025,-480.0,0.00019506,2]
[373287658,1752928264035,-480.0,0.00019506,2]
[373287659,1752928264047,-480.0,0.00019506,2]
[373287660,1752928264057,-480.0,0.00019506,2]
[373287661,1752928264067,-480.0,0.00019506,2]
[373287662,1752928264076,-480.0,0.00019506,2]
[373287663,1752928264086,-480.0,0.00019506,2]
[373287664,1752928264096,-480.0,0.00019506,2]
[373287665,1752928264106,-480.0,0.00019506,2]
[373287666,1752928264116,-480.0,0.00019506,2]
[373287667,1752928264125,-480.0,0.00019506,2]
[373287668,1752928264136,-714.74,0.00019506,2]
[373287669,1752928264145,-480.0,0.00019506,2]
[373287670,1752928264155,-480.0,0.00019506,2]
[373287671,1752928264165,-480.0,0.00019506,2]
[373287672,1752928264175,-480.0,0.00019506,2]
[373287673,1752928264185,-480.0,0.00019506,2]
[373287674,1752928264195,-480.0,0.00019506,2]
[373287675,1752928264205,-2119.23,0.00019506,2]
[373287676,1752928264215,-480.0,0.00019506,2]
[373287677,1752928264226,-1441.83,0.00019506,2]
[373287678,1752928264236,-480.0,0.00019506,2]
[373287679,1752928264246,-480.0,0.00019506,2]
[373287680,1752928264256,-480.0,0.00019506,2]
[373287681,1752928264265,-480.0,0.00019506,2]
[373287682,1752928264275,-480.0,0.00019506,2]
[373287683,1752928264285,-674.67,0.00019506,2]
[373287684,1752928264295,-480.0,0.00019506,2]
[373287685,1752928264305,-480.0,0.00019506,2]
[373287686,1752928264315,-480.0,0.00019506,2]
[373287687,1752928264326,-480.0,0.00019506,2]
[373287688,1752928264336,-480.0,0.00019506,2]
[373287689,1752928264346,-480.0,0.00019506,2]
[373287690,1752928264356,-480.0,0.00019506,2]
[373287691,1752928264366,-480.0,0.00019506,2]
[373287692,1752928264375,-1458.11,0.00019506,2]
[373287693,1752928264384,-480.0,0.00019506,2]
[373287694,1752928264394,-480.0,0.00019506,2]
[373287695,1752928264404,-480.0,0.00019506,2]
[373287696,1752928264414,-480.0,0.00019506,2]
[373287697,1752928264423,-1357.85,0.00019506,2]
[373287698,1752928264433,-360.0,0.00019506,2]
[373287699,1752928264443,-480.0,0.00019506,2]
[373287700,1752928264452,-480.0,0.00019506,2]
[373287701,1752928264463,-480.0,0.00019506,2]
[373287702,1752928264472,-480.0,0.00019506,2]
[373287703,1752928264483,-480.0,0.00019506,2]
[373287704,1752928264493,-480.0,0.00019506,2]
[373287705,1752928264503,-480.0,0.00019506,2]
[373287706,1752928264512,-480.0,0.00019506,2]
[373287707,1752928264522,-4272.71,0.00019506,2]
[373287708,1752928264532,-480.0,0.00019506,2]
[373287709,1752928264542,-623.13,0.00019506,2]
[373287710,1752928264552,-480.0,0.00019506,2]
[373287711,1752928264562,-480.0,0.00019506,2]
[373287712,1752928264572,-480.0,0.00019506,2]
[373287713,1752928264582,-480.0,0.00019506,2]
[373287714,1752928264592,-340.0,0.00019506,2]
[373287715,1752928264602,-480.0,0.00019506,2]
[373287716,1752928264611,-480.0,0.00019506,2]
[373287717,1752928264621,-480.0,0.00019506,2]
[373287718,1752928264631,-480.0,0.00019506,2]
[373287719,1752928264641,-480.0,0.00019506,2]
[373287720,1752928264650,-480.0,0.00019506,2]
[373287721,1752928264660,-480.0,0.00019506,2]
[373287722,1752928264669,-480.0,0.00019506,2]
[373287723,1752928264679,-480.0,0.00019506,2]
[373287724,1752928264689,-486.3,0.00019506,2]
[373287725,1752928264699,-593.57,0.00019506,2]
[373287726,1752928264709,-480.0,0.00019506,2]
[373287727,1752928264718,-480.0,0.00019506,2]
[373287728,1752928264730,-480.0,0.00019506,2]
[373287729,1752928264740,-480.0,0.00019506,2]
[373287730,1752928264750,-480.0,0.00019506,2]
[373287731,1752928264760,-480.0,0.00019506,2]
[373287732,1752928264770,-1349.46,0.00019506,2]
[373287733,1752928264779,-480.0,0.00019506,2]
[373287734,1752928264789,-480.0,0.00019506,2]
[373287735,1752928264799,-480.0,0.00019506,2]
[373287736,1752928264809,-480.0,0.00019506,2]
[373287737,1752928265077,-480.0,0.00019506,2]
[373287738,1752928265090,-480.0,0.00019506,2]
[373287739,1752928265100,-480.0,0.00019506,2]
[373287740,1752928265110,-420.94133678,0.00019506,2]
[373287741,1752928265123,-480.0,0.00019506,2]
[373287742,1752928265134,-480.0,0.00019506,2]
[373287743,1752928265144,-480.0,0.00019506,2]
[373287744,1752928265154,-480.0,0.00019506,2]
[373287745,1752928265163,-480.0,0.00019506,2]
[373287746,1752928265173,-480.0,0.00019506,2]
[373287747,1752928265183,-480.0,0.00019506,2]
[373287748,1752928265193,-480.0,0.00019506,2]
[373287749,1752928265203,-480.0,0.00019506,2]
[373287750,1752928265213,-480.0,0.00019506,2]
[373287751,1752928265222,-480.0,0.00019506,2]
[373287752,1752928265233,-480.0,0.00019506,2]
[373287753,1752928265243,-572.59,0.00019506,2]
[373287754,1752928265253,-492.06,0.00019506,2]
[373287755,1752928265263,-480.0,0.00019506,2]
[373287756,1752928265273,-480.0,0.00019506,2]
[373287757,1752928265285,-501.9,0.00019506,2]
[373287758,1752928265294,-719.93,0.00019506,2]
[373287759,1752928265303,-480.0,0.00019506,2]
[373287760,1752928265313,-500.0,0.00019513,2]
[373287761,1752928265324,-500.0,0.00019531,2]
[373287762,1752928265335,-500.0,0.00019531,2]
[373287763,1752928265345,-500.0,0.00019531,2]
[373287764,1752928265355,-480.0,0.00019616,2]
[373287765,1752928265364,-480.0,0.00019616,2]
[373287766,1752928265375,-480.0,0.00019616,2]
[373287767,1752928265386,-495.87,0.00019616,2]
[373287768,1752928265397,-480.0,0.00019616,2]
[373287769,1752928265408,-480.0,0.00019616,2]
[373287770,1752928265418,-480.0,0.00019616,2]
[373287771,1752928265427,-505.32,0.00019616,2]
[373287772,1752928265437,-579.2,0.00019616,2]
[373287773,1752928265446,-480.0,0.00019616,2]
[373287774,1752928265457,-480.0,0.00019616,2]
[373287775,1752928265466,-480.0,0.00019616,2]
[373287776,1752928265477,-480.0,0.00019616,2]
[373287777,1752928265487,-480.0,0.00019616,2]
[373287778,1752928265497,-480.0,0.00019616,2]
[373287779,1752928265507,-526.2,0.00019616,2]
[373287780,1752928265518,-480.0,0.00019616,2]
[373287781,1752928265528,-480.0,0.00019616,2]
[373287782,1752928265539,-480.0,0.00019616,2]
[373287783,1752928265549,-483.26,0.00019616,2]
[373287784,1752928265560,-623.32981476,0.00019616,2]
[373287785,1752928265571,-840.08,0.00019616,2]
[373287786,1752928265581,-480.0,0.00019616,2]
[373287787,1752928265590,-480.0,0.00019616,2]
[373287788,1752928265599,-480.0,0.00019616,2]
[373287789,1752928265609,-493.36,0.00019616,2]
[373287790,1752928265619,-480.0,0.00019616,2]
[373287791,1752928265628,-480.0,0.00019616,2]
[373287792,1752928265638,-480.0,0.00019616,2]
[373287793,1752928265647,-363.12,0.00019616,2]
[373287794,1752928265657,-480.0,0.00019616,2]
[373287795,1752928265666,-480.0,0.00019616,2]
[373287796,1752928265675,-480.0,0.00019616,2]
[373287797,1752928265685,-480.0,0.00019616,2]
[373287798,1752928265695,-480.0,0.00019616,2]
[373287799,1752928265704,-480.0,0.00019616,2]
[373287800,1752928265714,-480.0,0.00019616,2]
[373287801,1752928265723,-823.7,0.00019616,2]
[373287802,1752928265735,-312.88,0.00019616,2]
[373287803,1752928265744,-480.0,0.00019616,2]
[373287804,1752928265753,-480.0,0.00019616,2]
[373287805,1752928265763,-1696.98,0.00019616,2]
[373287806,1752928265773,-480.0,0.00019616,2]
[373287807,1752928265783,-480.0,0.00019616,2]
[373287808,1752928265792,-480.0,0.00019616,2]
[373287809,1752928265802,-480.0,0.00019616,2]
[373287810,1752928265812,-480.0,0.00019616,2]
[373287811,1752928265821,-480.0,0.00019616,2]
[373287812,1752928265831,-480.0,0.00019616,2]
[373287813,1752928265841,-714.74,0.00019616,2]
[373287814,1752928265851,-480.0,0.00019616,2]
[373287815,1752928265860,-480.0,0.00019616,2]
[373287816,1752928265870,-166.64519162,0.00019616,2]
[373287817,1752928265880,-192.12,0.00019616,2]
[373287818,1752928265890,-480.0,0.00019616,2]
[373287819,1752928265900,-480.0,0.00019616,2]
[373287820,1752928265910,-2119.23,0.00019616,2]
[373287821,1752928265919,-1441.83,0.00019616,2]
[373287822,1752928265929,-480.0,0.00019616,2]
[373287823,1752928265939,-480.0,0.00019616,2]
[373287824,1752928265949,-480.0,0.00019616,2]
[373287825,1752928265959,-674.67,0.00019616,2]
[373287826,1752928265969,-480.0,0.00019616,2]
[373287827,1752928265978,-521.15308187,0.00019616,2]
[373287828,1752928265988,-480.0,0.00019616,2]
[373287829,1752928265998,-480.0,0.00019616,2]
[373287830,1752928266008,-460.0,0.00019616,2]
[373287831,1752928266018,-1458.11,0.00019616,2]
[373287832,1752928266028,-480.0,0.00019616,2]
[373287833,1752928266039,-480.0,0.00019616,2]
[373287834,1752928266051,-1357.85,0.00019616,2]
[373287835,1752928266061,-480.0,0.00019616,2]
[373287836,1752928266071,-480.0,0.00019616,2]
[373287837,1752928266080,-480.0,0.00019616,2]
[373287838,1752928266091,-480.0,0.00019616,2]
[373287839,1752928266101,-4272.71,0.00019616,2]
[373287840,1752928266111,-460.0,0.00019616,2]
[373287841,1752928266122,-623.13,0.00019616,2]
[373287842,1752928266132,-480.0,0.00019616,2]
[373287843,1752928266142,-480.0,0.00019616,2]
[373287844,1752928266152,-480.0,0.00019616,2]
[373287845,1752928266162,-480.0,0.00019616,2]
[373287846,1752928266173,-480.0,0.00019616,2]
[373287847,1752928266183,-480.0,0.00019616,2]
[373287848,1752928266193,-480.0,0.00019616,2]
[373287849,1752928266203,-480.0,0.00019616,2]
[373287850,1752928266213,-480.0,0.00019616,2]
[373287851,1752928266223,-486.3,0.00019616,2]
[373287852,1752928266235,-593.57,0.00019616,2]
[373287853,1752928266246,-480.0,0.00019616,2]
[373287854,1752928266256,-480.0,0.00019616,2]
[373287855,1752928266267,-480.0,0.00019616,2]
[373287856,1752928266277,-480.0,0.00019616,2]
[373287857,1752928266287,-1349.46,0.00019616,2]
[373287858,1752928266297,-480.0,0.00019616,2]
[373287859,1752928266306,-460.0,0.00019616,2]
[373287860,1752928266316,-480.0,0.00019616,2]
[373287861,1752928266325,-360.0,0.00019616,2]
[373287862,1752928266335,-480.0,0.00019616,2]
[373287863,1752928266345,-352.49890661,0.00019616,2]
[373287864,1752928266355,-397.28,0.00019616,2]
[373287865,1752928266365,-480.0,0.00019616,2]
[373287866,1752928266375,-480.0,0.00019616,2]
[373287867,1752928266386,-460.0,0.00019616,2]
[373287868,1752928266395,-480.0,0.00019616,2]
[373287869,1752928266406,-460.0,0.00019616,2]
[373287870,1752928266416,-490.19,0.00019616,2]
[373287871,1752928266426,-572.59,0.00019616,2]
[373287872,1752928266436,-492.06,0.00019616,2]
[373287873,1752928266445,-480.0,0.00019616,2]
[373287874,1752928266455,-480.0,0.00019616,2]
[373287875,1752928266465,-501.9,0.00019616,2]
[373287876,1752928266475,-719.93,0.00019616,2]
[373287877,1752928266486,-500.0,0.00019617,2]
[373287878,1752928266495,-500.0,0.00019618,2]
[373287879,1752928266505,-483.459322,0.00019726,2]
[373287880,1752928266514,-445.351693,0.00019726,2]
[373287881,1752928266523,-417.26307425,0.00019726,2]
[373287882,1752928266532,-274.42,0.00019726,2]
[373287883,1752928266542,-480.0,0.00019726,2]
[373287884,1752928266552,-495.87,0.00019726,2]
[373287885,1752928266562,-480.0,0.00019726,2]
[373287886,1752928266572,-480.0,0.00019726,2]
[373287887,1752928266581,-480.0,0.00019726,2]
[373287888,1752928266591,-480.0,0.00019726,2]
[373287889,1752928266601,-233.78,0.00019726,2]
[373287890,1752928266610,-480.0,0.00019726,2]
[373287891,1752928266619,-445.351691,0.00019726,2]
[373287892,1752928266629,-862.536349,0.00019726,2]
[373287893,1752928266638,-480.0,0.00019726,2]
[373287894,1752928266648,-480.0,0.00019726,2]
[373287895,1752928266658,-480.0,0.00019726,2]
[373287896,1752928266667,-480.0,0.00019726,2]
[373287897,1752928266677,-480.0,0.00019726,2]
[373287898,1752928266686,-483.26,0.00019726,2]
[373287899,1752928266696,-400.0,0.00019726,2]
[373287900,1752928266706,-840.08,0.00019726,2]
[373287901,1752928266716,-480.0,0.00019726,2]
[373287902,1752928266726,-480.0,0.00019726,2]
[373287903,1752928266735,-480.0,0.00019726,2]
[373287904,1752928266745,-493.36,0.00019726,2]
[373287905,1752928266754,-480.0,0.00019726,2]
[373287906,1752928266764,-480.0,0.00019726,2]
[373287907,1752928266774,-480.0,0.00019726,2]
[373287908,1752928266783,-480.0,0.00019726,2]
[373287909,1752928266793,-480.0,0.00019726,2]
[373287910,1752928266802,-480.0,0.00019726,2]
[373287911,1752928266812,-480.0,0.00019726,2]
[373287912,1752928266822,-445.351691,0.00019726,2]
[373287913,1752928266832,-480.0,0.00019726,2]
[373287914,1752928266842,-480.0,0.00019726,2]
[373287915,1752928266852,-480.0,0.00019726,2]
[373287916,1752928266861,-823.7,0.00019726,2]
[373287917,1752928266871,-480.0,0.00019726,2]
[373287918,1752928266881,-480.0,0.00019726,2]
[373287919,1752928266890,-1696.98,0.00019726,2]
[373287920,1752928266900,-480.0,0.00019726,2]
[373287921,1752928266910,-480.0,0.00019726,2]
[373287922,1752928266919,-480.0,0.00019726,2]
[373287923,1752928266929,-480.0,0.00019726,2]
[373287924,1752928266939,-480.0,0.00019726,2]
[373287925,1752928266949,-629.63,0.00019726,2]
[373287926,1752928266959,-480.0,0.00019726,2]
[373287927,1752928266969,-714.74,0.00019726,2]
[373287928,1752928266978,-480.0,0.00019726,2]
[373287929,1752928266988,-480.0,0.00019726,2]
[373287930,1752928266999,-480.0,0.00019726,2]
[373287931,1752928267010,-480.0,0.00019726,2]
[373287932,1752928267020,-2119.23,0.00019726,2]
[373287933,1752928267030,-1441.83,0.00019726,2]
[373287934,1752928267041,-365.9,0.00019726,2]
[373287935,1752928267052,-480.0,0.00019726,2]
[373287936,1752928267061,-480.0,0.00019726,2]
[373287937,1752928267071,-213.58981767,0.00019726,2]
[373287938,1752928269690,10000.0,7.945e-05,2]
[373287939,1752928269711,243.741174,7.945e-05,2]
[373287942,1752928372344,152.0,0.00025,120]
[373287947,1752928432660,159.85,0.00013955,2]
[373287948,1752928432856,159.85,0.00015699,2]
[373287953,1752928821554,-1395.275616,0.00016326,2]
[373287954,1752928821580,-300.0,0.00016368,2]
[373287955,1752928821605,-250.0,0.00016409,2]
[373287956,1752928821630,-300.0,0.00016436,2]
[373287957,1752928821655,-166.66666667,0.0001645,2]
[373287958,1752928821680,-163.6977861,0.0001645,2]
[373287959,1752928821705,-1062.21440351,0.00016496,2]
[373287960,1752928821730,-1300.0,0.000165,6]
[373287961,1752928821756,-1200.0,0.00016525,2]
[373287962,1752928821787,-300.0,0.00016525,2]
[373287963,1752928821811,-23900.0,0.00016526,2]
[373287964,1752928821834,-200.0,0.00016596,2]
[373287965,1752928821859,-1700.0,0.000166,6]
[373287966,1752928821886,-471.3,0.00016604,2]
[373287967,1752928821910,-338.39,0.00016604,2]
[373287968,1752928821936,-150.0,0.00016627,2]
[373287969,1752928821963,-300.0,0.000167,6]
[373287970,1752928821987,-300.0,0.000168,6]
[373287971,1752928822011,-500.0,0.00016887,2]
[373287972,1752928822040,-300.0,0.000169,6]
[373287973,1752928822065,-205.1752743,0.00016973,2]
[373287974,1752928822092,-663.77,0.0001698,2]
[373287975,1752928822117,-663.77,0.00016989,2]
[373287976,1752928822143,-663.77,0.00016998,2]
[373287977,1752928822169,-300.0,0.00016999,2]
[373287978,1752928822201,-300.0,0.00016999,2]
[373287979,1752928822229,-300.0,0.00016999,2]
[373287980,1752928850298,165.41,0.00016882,2]
[373287981,1752928852992,1737.73,0.00016882,2]
[373287982,1752928856712,1500.0,0.00016906,2]
[373287986,1752928956725,155.6,0.00025,120]
[373287992,1752929027047,292.16,0.00013699,2]
[373288507,1752929432287,-500.0,0.00016226,2]
[373288508,1752929432297,-163.69778608,0.00016806,2]
[373288509,1752929432306,-459.0,0.00016896,2]
[373288510,1752929432316,-1200.0,0.00016896,2]
[373288511,1752929432325,-500.0,0.00016897,2]
[373288512,1752929432334,-500.0,0.00016897,2]
[373288513,1752929432344,-500.0,0.00016897,2]
[373288514,1752929432353,-500.0,0.00016897,2]
[373288515,1752929432362,-338.91932116,0.00016897,2]
[373288516,1752929432371,-151.0,0.00016897,2]
[373288517,1752929432380,-151.0,0.00016897,2]
[373288518,1752929432390,-151.0,0.00016897,2]
[373288519,1752929432399,-151.0,0.00016897,2]
[373288520,1752929432408,-151.0,0.00016897,2]
[373288522,1752929432418,-500.0,0.00016897,2]
[373288523,1752929432427,-151.0,0.00016897,2]
[373288524,1752929432436,-151.0,0.00016897,2]
[373288525,1752929432445,-500.0,0.00016897,2]
[373288526,1752929432455,-151.0,0.00016897,2]
[373288527,1752929432464,-51.58445816,0.00016897,2]
[373288528,1752929432584,-99.41554184,0.00016897,2]
[373288529,1752929432594,-151.0,0.00016897,2]
[373288530,1752929432604,-151.0,0.00016897,2]
[373288531,1752929432614,-500.0,0.00016897,2]
[373288532,1752929432623,-151.0,0.00016897,2]
[373288533,1752929432633,-500.0,0.00016897,2]
[373288534,1752929432643,-151.0,0.00016897,2]
[373288535,1752929432653,-500.0,0.00016897,2]
[373288537,1752929432663,-151.0,0.00016897,2]
[373288539,1752929432672,-610.37924375,0.00016897,2]
[373288540,1752929432681,-151.0,0.00016897,2]
[373288543,1752929432691,-151.0,0.00016897,2]
[373288545,1752929432701,-151.0,0.00016897,2]
[373288547,1752929432711,-151.0,0.00016897,2]
[373288548,1752929432720,-297.70782219,0.00016897,2]
[373288551,1752929432730,-588.79849624,0.000169,2]
[373288553,1752929432740,-1493.76,0.00016906,2]
[373288555,1752929432749,-24350.52,0.00016907,2]
[373288557,1752929432760,-1531.02,0.00016983,2]
[373288559,1752929432770,-500.0,0.00016983,2]
[373288561,1752929432780,-666.0,0.00016999,2]
[373288563,1752929432789,-1000.0,0.00017006,2]
[373288565,1752929432798,-663.77,0.00017007,2]
[373288567,1752929432808,-663.77,0.00017016,2]
[373288568,1752929432817,-3363.44,0.00017018,2]
[373288571,1752929432826,-663.77,0.00017025,2]
[373288574,1752929432836,-663.77,0.00017034,2]
[373288577,1752929432845,-190.0,0.00017042,7]